bitfinex/quotes_SOLUSD_20250517
["timestamp","ask_amount","ask_price","bid_price","bid_amount"]
[1747480285231,142.88132667,167.19,167.13,5.98336624]
[1747480290006,142.88132667,167.19,167.11,8.1056]
[1747480290229,142.88132667,167.19,167.11,1.5458]
[1747480290532,157.8343741,167.19,167.11,1.5458]
[1747480295845,143.0513,167.18,167.07,2.67224332]
[1747480296060,162.9,167.17,167.07,1.12754332]
[1747480296218,19.0,167.16,167.07,1.12754332]
[1747480296927,20.93927609,167.15,167.07,1.12754332]
[1747480297139,18.82,167.14,167.07,1.12754332]
[1747480297529,18.82,167.14,167.06,4.29015519]
[1747480298348,5.98336624,167.13,167.05,50.63572947]
[1747480298827,5.98336624,167.13,167.05,44.64964886]
[1747480304058,5.98336624,167.13,167.05,50.63585348]
[1747480304362,5.98336624,167.13,167.05,44.64964886]
[1747480305548,157.84178184,167.13,167.05,18.64964886]
[1747480307248,157.84178184,167.13,167.03,33.79]
[1747480307571,136.9,167.12,167.04,18.64964886]
[1747480309172,20.94428819,167.11,167.04,18.64964886]
[1747480309871,20.94428819,167.11,167.03,33.79]
[1747480314873,136.9,167.1,167.03,33.79]
[1747480317288,5.98479861,167.09,167.03,33.79]
[1747480320762,18.94,167.12,167.03,33.79]
[1747480323594,20.94428819,167.11,167.03,33.79]
[1747480324287,39.76428819,167.11,167.03,33.79]
[1747480325997,39.76428819,167.11,167.03,7.79]
[1747480326789,136.9,167.1,167.03,7.79]
[1747480329099,5.98479861,167.09,167.03,7.79]
[1747480332392,20.94679513,167.09,167.03,7.79]
[1747480334498,20.94679513,167.09,167.03,1.5447]
[1747480335881,5.98551505,167.07,167.03,1.5447]
[1747480342185,5.98551505,167.07,167.01,1.10426762]
[1747480343191,5.98551505,167.07,167.01,2.72276762]
[1747480343498,136.9,167.08,167.01,8.71039591]
[1747480347020,142.88516866,167.08,167.01,8.71039591]
[1747480349137,136.9,167.08,167.02,18.64964886]
[1747480350731,24.88447691,167.1,167.03,5.98694845]
[1747480351236,18.9,167.1,167.03,5.98694845]
[1747480351837,24.88449331,167.1,167.03,5.98694845]
[1747480355643,18.9,167.1,167.03,5.98694845]
[1747480356137,18.9,167.1,167.03,20.95431958]
[1747480356314,18.9,167.1,167.04,18.64964886]
[1747480356632,18.9,167.1,167.05,7.8619]
[1747480357435,136.9,167.12,167.06,5.98587333]
[1747480357819,142.88378625,167.12,167.06,5.98587333]
[1747480358249,136.9,167.12,167.06,5.98587333]
[1747480360841,142.88374708,167.12,167.06,5.98587333]
[1747480364544,136.9,167.12,167.06,5.98587333]
[1747480368446,136.9,167.12,167.06,20.95055667]
[1747480368637,136.9,167.12,167.07,18.64964886]
[1747480368839,18.82,167.15,167.07,18.64964886]
[1747480369528,18.82,167.15,167.07,37.48964886]
[1747480370347,18.82,167.15,167.09,18.64964886]
[1747480372557,18.82,167.15,167.1,5.98444045]
[1747480377158,142.88180564,167.18,167.1,5.98444045]
[1747480378234,136.9,167.18,167.1,22.49054158]
[1747480378551,136.9,167.18,167.11,18.64964886]
[1747480379958,136.9,167.18,167.12,5.98372426]
[1747480380763,5.98122522,167.19,167.12,5.98372426]
[1747480383738,18.82,167.2,167.14,5.98300825]
[1747480384768,18.82,167.2,167.12,18.64964886]
[1747480384939,24.8011132,167.2,167.11,31.98408234]
[1747480386948,39.75326631,167.2,167.11,31.98408234]
[1747480387159,6.1513,167.19,167.07,18.64964886]
[1747480387355,155.72,167.18,167.07,18.64964886]
[1747480387560,155.72,167.18,167.08,26.0]
[1747480388271,20.93677094,167.17,167.08,26.0]
[1747480388467,20.93677094,167.17,167.08,31.98509933]
[1747480390493,20.93677094,167.17,167.08,31.98509933]
[1747480390860,5.98265031,167.15,167.08,26.0]
[1747480391965,5.98265031,167.15,167.08,31.98499633]
[1747480392476,5.98265031,167.15,167.08,26.0]
[1747480393156,18.82,167.14,167.04,5.98631988]
[1747480393480,155.72,167.14,167.04,5.98631988]
[1747480394148,20.94178184,167.13,167.04,5.98631988]
[1747480394349,20.94178184,167.13,167.03,31.98687056]
[1747480398888,5.98408234,167.11,167.03,31.98687056]
[1747480400276,5.98408234,167.11,167.04,18.64964886]
[1747480400478,142.88384534,167.12,167.04,18.64964886]
[1747480400863,136.9,167.12,167.05,5.98623166]
[1747480401265,5.98342001,167.13,167.06,1.5827]
[1747480401670,5.98342001,167.13,167.06,27.5827]
[1747480402476,24.80312328,167.14,167.06,27.5827]
[1747480403092,24.80312328,167.14,167.07,31.98551505]
[1747480403773,24.80312328,167.14,167.07,26.0]
[1747480405395,24.80312328,167.14,167.07,31.98536269]
[1747480406489,24.80312328,167.14,167.06,7.56844331]
[1747480412498,39.76064392,167.14,167.06,1.5827]
[1747480413599,39.76064392,167.14,167.06,7.56851458]
[1747480416678,24.80312328,167.14,167.06,7.56851458]
[1747480419498,24.80312328,167.14,167.06,1.5827]
[1747480419806,136.9,167.13,167.06,1.5827]
[1747480420309,136.9,167.13,167.06,7.56851708]
[1747480420799,5.98372426,167.12,167.06,1.5827]
[1747480420997,5.98372426,167.12,167.06,7.5685729]
[1747480421998,5.98372426,167.12,167.06,1.5827]
[1747480422501,5.98372426,167.12,167.04,5.98649398]
[1747480423701,5.98372426,167.12,167.03,50.63659731]
[1747480432615,20.94303493,167.12,167.02,8.99833336]
[1747480433802,20.94303493,167.12,167.02,14.98554174]
[1747480435813,5.98372426,167.12,167.03,18.64964886]
[1747480437218,5.98372426,167.12,167.04,5.98659003]
[1747480438822,5.98372426,167.12,167.06,5.98587333]
[1747480439931,142.88346903,167.13,167.06,5.98587333]
[1747480441214,136.9,167.13,167.07,24.98244886]
[1747480441422,18.82,167.14,167.07,24.98244886]
[1747480442315,161.70332144,167.14,167.05,11.79826097]
[1747480444337,176.66084208,167.14,167.05,11.79826097]
[1747480444817,176.66084208,167.14,167.05,7.50810578]
[1747480446319,157.84084208,167.14,167.05,7.50810578]
[1747480446833,157.84084208,167.14,167.05,1.522]
[1747480447414,157.84084208,167.14,167.05,7.50817491]
[1747480451135,157.84084208,167.14,167.05,1.522]
[1747480454013,157.84084208,167.14,167.05,7.5081985]
[1747480454329,157.84084208,167.14,167.05,1.522]
[1747480458733,157.84084208,167.14,167.05,7.50817526]
[1747480463329,142.88332144,167.14,167.06,18.64964886]
[1747480465147,142.88332144,167.14,167.06,24.63544164]
[1747480469239,142.88332144,167.14,167.05,7.50818432]
[1747480472747,142.88332144,167.14,167.07,5.98551505]
[1747480476755,5.98332144,167.14,167.07,5.98551505]
[1747480476932,5.98229241,167.16,167.07,5.98551505]
[1747480483852,20.93802344,167.16,167.07,5.98551505]
[1747480489268,20.93802344,167.16,167.06,24.6353928]
[1747480491870,5.98300825,167.14,167.06,24.6353928]
[1747480500667,20.94052889,167.14,167.05,5.81215519]
[1747480502088,136.9,167.13,167.05,5.81215519]
[1747480502269,136.9,167.13,167.03,10.62295519]
[1747480502583,20.94428819,167.11,167.03,10.62295519]
[1747480504949,20.94428819,167.11,167.03,6.3328]
[1747480508783,20.94428819,167.11,167.03,12.31965387]
[1747480509088,5.98408234,167.11,167.03,12.31965387]
[1747480509656,5.98408234,167.11,167.03,38.31965387]
[1747480518596,5.98408234,167.11,167.04,18.64964886]
[1747480519693,142.88383734,167.12,167.05,5.98623166]
[1747480519894,18.78,167.14,167.05,5.98623166]
[1747480519895,18.78,167.14,167.06,37.42964886]
[1747480520199,136.9,167.17,167.06,37.42964886]
[1747480520200,5.98229241,167.16,167.06,37.42964886]
[1747480520382,5.98229241,167.16,167.08,18.64964886]
[1747480521689,5.98229241,167.16,167.09,5.98479861]
[1747480528800,5.98157674,167.18,167.1,20.23414886]
[1747480529506,18.78,167.19,167.1,20.23414886]
[1747480529507,24.76128918,167.19,167.1,20.23414886]
[1747480530495,24.76128918,167.19,167.11,5.98408234]
[1747480530685,24.76128918,167.19,167.1,20.23414886]
[1747480531914,24.76128918,167.19,167.1,26.21846703]
[1747480535217,5.98097728,167.2,167.11,6.4025]
[1747480535408,5.98097728,167.2,167.13,18.64964886]
[1747480536511,5.98097728,167.2,167.14,5.98300825]
[1747480537019,164.77578102,167.21,167.14,5.98300825]
[1747480537901,142.88060289,167.21,167.14,5.98300825]
[1747480542626,5.97950404,167.24,167.17,18.64964886]
[1747480542921,5.97950404,167.24,167.18,5.98157674]
[1747480547723,136.9,167.25,167.18,5.98157674]
[1747480547894,136.9,167.25,167.18,31.98157674]
[1747480548100,142.87911387,167.25,167.18,31.98157674]
[1747480548297,142.87911387,167.25,167.18,50.74157674]
[1747480548497,142.87911387,167.25,167.18,44.76]
[1747480549924,142.87911387,167.25,167.18,50.74151287]
[1747480550729,142.87911387,167.25,167.18,44.76]
[1747480551025,157.82679697,167.25,167.16,6.3931]
[1747480551200,157.82679697,167.25,167.16,32.3931]
[1747480551399,157.82679697,167.25,167.16,38.37526881]
[1747480553425,157.82679697,167.25,167.16,32.3931]
[1747480554497,157.82679697,167.25,167.16,26.0]
[1747480554921,136.9,167.24,167.16,26.0]
[1747480555626,5.97978831,167.23,167.16,26.0]
[1747480555830,20.92925909,167.23,167.14,26.0]
[1747480557009,20.92925909,167.23,167.14,31.98294986]
[1747480559140,5.97978831,167.23,167.14,31.98294986]
[1747480560336,5.97978831,167.23,167.14,26.0]
[1747480561138,20.92925909,167.23,167.14,26.0]
[1747480561437,20.92925909,167.23,167.14,31.98298835]
[1747480565436,5.97978831,167.23,167.16,1.5037]
[1747480566542,5.97978831,167.23,167.17,5.98193455]
[1747480567418,136.9,167.24,167.17,5.98193455]
[1747480567419,142.8794885,167.24,167.17,5.98193455]
[1747480567743,142.8794885,167.24,167.18,6.1804]
[1747480568334,142.8794885,167.24,167.19,5.98121897]
[1747480569447,142.8794885,167.24,167.18,12.1619139]
[1747480569645,136.9,167.24,167.18,12.1619139]
[1747480569949,142.87946233,167.24,167.18,12.1619139]
[1747480570331,136.9,167.24,167.18,12.1619139]
[1747480570840,142.87951257,167.24,167.18,12.1619139]
[1747480572821,142.87951257,167.24,167.16,1.5037]
[1747480573860,142.87951257,167.24,167.16,7.48594656]
[1747480574332,136.9,167.24,167.18,5.98157674]
[1747480574648,136.9,167.24,167.18,24.72157674]
[1747480574833,136.9,167.24,167.19,18.64964886]
[1747480576426,142.87944538,167.24,167.19,18.64964886]
[1747480576631,142.87944538,167.24,167.18,24.72157674]
[1747480578853,5.97835834,167.27,167.18,24.72157674]
[1747480583439,5.97835834,167.27,167.19,18.64964886]
[1747480584029,5.97835834,167.27,167.2,26.0]
[1747480584345,136.9,167.28,167.21,1.5247]
[1747480584346,142.87810376,167.28,167.21,1.5247]
[1747480585142,142.87810376,167.28,167.21,7.50496033]
[1747480585642,136.9,167.28,167.22,18.64964886]
[1747480585835,24.73771794,167.29,167.22,18.64964886]
[1747480586355,5.97771794,167.29,167.22,18.64964886]
[1747480587158,5.97692905,167.31,167.23,5.97978831]
[1747480587558,5.97692905,167.31,167.22,24.62972102]
[1747480587762,31.97692905,167.31,167.21,1.5247]
[1747480587958,46.91925168,167.31,167.21,1.5247]
[1747480588647,46.91925168,167.31,167.21,7.50509679]
[1747480589273,46.91925168,167.31,167.21,1.5247]
[1747480590762,136.9,167.3,167.21,1.5247]
[1747480591571,5.97764361,167.29,167.21,1.5247]
[1747480592869,20.92175264,167.29,167.21,1.5247]
[1747480593266,20.92175264,167.29,167.19,32.2869]
[1747480593771,136.9,167.28,167.19,32.2869]
[1747480594270,136.9,167.28,167.19,38.26807591]
[1747480595976,5.97835834,167.27,167.19,38.26807591]
[1747480596968,5.97835834,167.27,167.2,18.64964886]
[1747480599176,5.97835834,167.27,167.2,24.6302797]
[1747480599406,5.97835834,167.27,167.2,18.64964886]
[1747480599874,5.97835834,167.27,167.2,24.63045967]
[1747480601271,142.87811217,167.28,167.2,24.63045967]
[1747480610460,136.9,167.28,167.24,18.64964886]
[1747480611493,5.97657183,167.32,167.25,5.97907324]
[1747480618998,5.97657183,167.32,167.24,24.62900175]
[1747480619168,20.91800142,167.32,167.24,18.64964886]
[1747480619483,20.91800142,167.32,167.23,31.97977084]
[1747480620792,157.81800142,167.32,167.23,31.97977084]
[1747480622786,142.87657183,167.32,167.24,18.64964886]
[1747480622978,136.9,167.32,167.24,18.64964886]
[1747480623179,136.9,167.32,167.26,18.64964886]
[1747480623770,24.69634125,167.33,167.26,18.64964886]
[1747480623970,5.97634125,167.33,167.26,18.64964886]
[1747480624385,5.97550044,167.35,167.27,5.97835834]
[1747480628687,20.91425156,167.35,167.26,24.62825739]
[1747480629109,20.91425156,167.35,167.24,24.62898474]
[1747480629916,20.91675132,167.33,167.24,24.62898474]
[1747480632302,20.91675132,167.33,167.24,24.62898474]
[1747480632516,20.91675132,167.33,167.23,26.0]
[1747480632800,136.9,167.32,167.23,18.64964886]
[1747480634226,5.97692905,167.31,167.23,18.64964886]
[1747480635026,5.97692905,167.31,167.23,24.62928243]
[1747480639729,20.91925168,167.31,167.23,18.64964886]
[1747480640930,20.91925168,167.31,167.23,24.62933157]
[1747480642727,5.97692905,167.31,167.23,24.62933157]
[1747480652939,5.97692905,167.31,167.25,5.97907324]
[1747480655443,136.9,167.32,167.27,1.5817]
[1747480656034,136.9,167.32,167.28,18.64964886]
[1747480656237,10.22155186,167.36,167.28,18.64964886]
[1747480656439,10.22155186,167.36,167.28,37.36964886]
[1747480657242,10.22155186,167.36,167.29,5.97764361]
[1747480657952,5.97523127,167.36,167.29,5.97764361]
[1747480658251,5.9747864,167.37,167.29,5.97764361]
[1747480658429,5.9747864,167.37,167.3,18.64964886]
[1747480659645,5.9747864,167.37,167.31,5.97692905]
[1747480659850,142.87452821,167.38,167.31,5.97692905]
[1747480660355,136.9,167.38,167.32,20.23134886]
[1747480661142,5.97335881,167.41,167.34,18.64964886]
[1747480662219,5.97335881,167.41,167.34,5.97570613]
[1747480663760,5.97335881,167.41,167.34,18.64964886]
[1747480664044,142.87304872,167.42,167.34,18.64964886]
[1747480664242,142.87304872,167.42,167.34,37.34964886]
[1747480665161,142.87304872,167.42,167.36,18.64964886]
[1747480666352,142.87304872,167.42,167.36,5.97507749]
[1747480667433,142.87304872,167.42,167.36,18.64964886]
[1747480668062,142.87304872,167.42,167.34,24.67576312]
[1747480668243,142.87304872,167.42,167.35,18.64964886]
[1747480670156,157.80555379,167.42,167.33,18.64964886]
[1747480670345,136.9,167.41,167.32,1.5817]
[1747480670546,136.9,167.41,167.31,37.34964886]
[1747480670731,155.6,167.41,167.31,37.34964886]
[1747480671443,155.6,167.41,167.31,18.7]
[1747480671444,26.0,167.4,167.31,18.7]
[1747480672362,20.90925383,167.39,167.31,18.7]
[1747480674495,20.90925383,167.39,167.3,5.97727453]
[1747480674637,157.80925383,167.39,167.3,5.97727453]
[1747480675651,157.80925383,167.39,167.29,24.62717153]
[1747480676469,157.80925383,167.39,167.29,18.64964886]
[1747480677846,157.80925383,167.39,167.29,24.62715078]
[1747480680772,157.80925383,167.39,167.29,18.64964886]
[1747480681369,157.80925383,167.39,167.3,26.0]
[1747480681672,18.7,167.38,167.28,1.5666]
[1747480681966,18.7,167.38,167.26,18.7]
[1747480681967,26.0,167.37,167.26,18.7]
[1747480682171,162.9,167.37,167.26,50.67870052]
[1747480682356,162.9,167.37,167.26,31.97870052]
[1747480682556,20.9130019,167.36,167.26,31.97870052]
[1747480683091,136.9,167.35,167.23,1.6008]
[1747480683251,161.7277,167.35,167.24,18.64964886]
[1747480683571,161.7277,167.35,167.24,44.64964886]
[1747480684349,20.91550136,167.34,167.24,50.62887012]
[1747480685373,20.91550136,167.34,167.24,44.64964886]
[1747480685667,26.0,167.31,167.23,1.6008]
[1747480686048,26.0,167.31,167.21,18.64964886]
[1747480686267,20.92050209,167.3,167.21,44.64964886]
[1747480686456,157.82050209,167.3,167.21,44.64964886]
[1747480686854,157.82050209,167.3,167.21,18.64964886]
[1747480687254,157.82050209,167.3,167.21,44.64964886]
[1747480687769,157.82050209,167.3,167.21,50.63013735]
[1747480688475,157.82050209,167.3,167.21,44.64964886]
[1747480690489,157.82050209,167.3,167.2,18.7]
[1747480690659,157.82050209,167.3,167.19,1.6008]
[1747480690860,18.7,167.29,167.19,1.6008]
[1747480691060,24.8513,167.29,167.19,1.6008]
[1747480692375,26.0,167.28,167.19,1.6008]
[1747480692562,20.92550519,167.26,167.15,26.28634995]
[1747480692760,136.9,167.25,167.16,26.0]
[1747480693073,136.9,167.25,167.15,26.28634995]
[1747480693449,136.9,167.25,167.16,26.0]
[1747480694659,5.97943075,167.24,167.17,31.98193455]
[1747480696062,136.9,167.25,167.18,20.25334886]
[1747480696268,26.0,167.3,167.18,26.62184886]
[1747480696455,5.97728631,167.3,167.18,26.62184886]
[1747480696661,5.97728631,167.3,167.22,26.0]
[1747480698294,5.97728631,167.3,167.23,5.97978831]
[1747480698963,161.57702685,167.31,167.24,18.64964886]
[1747480699358,155.6,167.31,167.24,18.64964886]
[1747480699559,5.97670078,167.32,167.26,18.64964886]
[1747480700260,20.91484323,167.35,167.26,24.62821808]
[1747480701170,20.91484323,167.35,167.25,26.0]
[1747480701882,20.91484323,167.35,167.24,27.5384]
[1747480702069,20.91484323,167.35,167.24,1.5384]
[1747480702272,20.91484323,167.35,167.24,27.5384]
[1747480702793,50.79234547,167.35,167.24,27.5384]
[1747480703800,20.91484323,167.35,167.25,24.69124886]
[1747480704789,20.91484323,167.35,167.26,26.0]
[1747480706285,20.91484323,167.35,167.26,31.97870514]
[1747480708763,20.91484323,167.35,167.26,26.0]
[1747480708963,20.91484323,167.35,167.26,31.97871551]
[1747480710999,20.91484323,167.35,167.19,5.88055519]
[1747480711000,26.0,167.31,167.19,5.88055519]
[1747480711296,136.9,167.3,167.22,26.0]
[1747480712286,136.9,167.3,167.2,18.64964886]
[1747480712589,20.92175264,167.29,167.21,26.0]
[1747480721097,5.97764361,167.29,167.21,31.98032503]
[1747480721276,5.97764361,167.29,167.22,18.64964886]
[1747480723196,20.92175264,167.29,167.22,26.0]
[1747480726804,5.97764361,167.29,167.23,18.64964886]
[1747480727904,5.97764361,167.29,167.23,24.62909954]
[1747480729310,5.97764361,167.29,167.23,18.64964886]
[1747480731101,5.97764361,167.29,167.22,26.0]
[1747480731496,20.92175264,167.29,167.22,26.0]
[1747480732381,20.92175264,167.29,167.2,18.64964886]
[1747480735412,20.92175264,167.29,167.2,24.63046364]
[1747480737416,20.92175264,167.29,167.2,18.64964886]
[1747480738708,20.92175264,167.29,167.2,24.63040577]
[1747480739518,20.92175264,167.29,167.2,18.64964886]
[1747480740018,20.92175264,167.29,167.2,24.6304227]
[1747480742102,20.92175264,167.29,167.2,18.64964886]
[1747480744017,46.92175264,167.29,167.19,1.5904]
[1747480744215,155.6,167.28,167.19,1.5904]
[1747480744422,26.0,167.25,167.15,5.92905519]
[1747480744718,18.68,167.24,167.15,5.92905519]
[1747480744921,18.68,167.24,167.15,4.29015519]
[1747480746227,20.92925909,167.23,167.12,18.64964886]
[1747480746400,18.7,167.22,167.13,26.0]
[1747480747823,20.93176244,167.21,167.13,26.0]
[1747480748011,157.83176244,167.21,167.13,26.0]
[1747480754931,157.83176244,167.21,167.11,1.6389]
[1747480755235,187.73428023,167.21,167.11,1.6389]
[1747480757247,187.73428023,167.21,167.1,26.0]
[1747480757421,20.93677094,167.17,167.08,18.64964886]
[1747480757735,157.83677094,167.17,167.08,44.64964886]
[1747480760837,157.83677094,167.17,167.08,50.63474318]
[1747480769347,157.83677094,167.17,167.08,44.64964886]
[1747480769845,157.83677094,167.17,167.08,50.63478341]
[1747480770851,157.83677094,167.17,167.08,44.64964886]
[1747480771243,157.83677094,167.17,167.08,26.0]
[1747480772849,157.83677094,167.17,167.07,1.6284]
[1747480773155,157.83677094,167.17,167.04,18.64964886]
[1747480773156,26.0,167.13,167.04,18.64964886]
[1747480773322,5.98515681,167.08,167.02,1.07203336]
[1747480773925,20.94804883,167.08,167.02,1.07203336]
[1747480774136,20.94804883,167.08,167.01,4.29015519]
[1747480774831,26.0,167.05,167.01,4.29015519]
[1747480775029,51.7313,167.05,167.01,4.29015519]
[1747480775334,51.7313,167.05,166.98,9.25869268]
[1747480775335,5.9876654,167.01,166.98,9.25869268]
[1747480776344,24.63731426,167.01,166.98,9.25869268]
[1747480776544,26.0,166.99,166.98,9.25869268]
[1747480776721,45.58,166.99,166.98,9.25869268]
[1747480777747,51.56838253,166.99,166.98,9.25869268]
[1747480777937,5.98838253,166.99,166.98,9.25869268]
[1747480778145,5.98838253,166.99,166.98,6.75869268]
[1747480778531,45.58,167.0,166.98,6.75869268]
[1747480778732,51.56818296,167.0,166.98,6.75869268]
[1747480785932,136.9,166.99,166.98,6.75869268]
[1747480787355,161.53803139,166.99,166.98,6.75869268]
[1747480787852,24.63803139,166.99,166.98,6.75869268]
[1747480789062,5.98838253,166.99,166.98,6.75869268]
[1747480789264,45.20838253,166.99,166.98,6.75869268]
[1747480794972,45.20838253,166.99,166.98,6.75869268]
[1747480796351,71.20838253,166.99,166.98,6.75869268]
[1747480801554,51.58838253,166.99,166.98,6.75869268]
[1747480805580,25.58838253,166.99,166.98,6.75869268]
[1747480806365,19.6,166.99,166.98,6.75869268]
[1747480806553,5.98694845,167.03,166.98,6.75869268]
[1747480806877,5.98659003,167.04,166.98,6.75869268]
[1747480810773,20.95306512,167.04,166.98,6.75869268]
[1747480813362,5.98659003,167.04,166.98,6.75869268]
[1747480814367,20.95306512,167.04,166.98,6.75869268]
[1747480819982,5.98659003,167.04,166.98,6.75869268]
[1747480823208,5.98659003,167.04,166.99,7.8445]
[1747480829798,19.66,167.05,166.99,13.83287293]
[1747480829978,25.6463234,167.05,166.99,13.83287293]
[1747480831395,156.54,167.1,167.0,18.64964886]
[1747480832306,156.54,167.1,166.99,13.83287293]
[1747480832307,20.94679513,167.09,166.99,13.83287293]
[1747480834282,20.94679513,167.09,167.0,24.63748305]
[1747480842404,20.94679513,167.09,167.0,5.98783419]
[1747480842575,20.94679513,167.09,166.99,13.83277165]
[1747480842783,136.9,167.08,166.99,13.83277165]
[1747480844000,136.9,167.08,166.99,7.8445]
[1747480844582,20.94930268,167.07,166.99,7.8445]
[1747480845908,136.9,167.06,166.99,7.8445]
[1747480847717,5.98623166,167.05,166.99,7.8445]
[1747480858501,20.95181082,167.05,166.99,1.5905]
[1747480860901,136.9,167.04,166.99,1.5905]
[1747480861500,136.9,167.04,166.98,6.75869268]
[1747480862431,136.9,167.03,166.98,6.75869268]
[1747480862934,20.95557417,167.02,166.98,6.75869268]
[1747480863098,136.9,167.01,166.98,6.75869268]
[1747480863826,5.98802395,167.0,166.98,6.75869268]
[1747480864921,25.30802395,167.0,166.98,6.75869268]
[1747480865151,162.9,166.99,166.98,6.75869268]
[1747480865331,201.02964886,166.99,166.98,6.75869268]
[1747480865810,251.93090041,166.99,166.87,6.6216]
[1747480866012,26.0,166.95,166.87,6.6216]
[1747480866233,136.9,166.94,166.87,6.6216]
[1747480867242,5.99053495,166.93,166.87,12.61424815]
[1747480867732,5.99053495,166.93,166.87,6.52682762]
[1747480869249,136.9,166.94,166.87,12.51945508]
[1747480869449,136.9,166.94,166.88,20.23134886]
[1747480869733,136.9,166.94,166.9,1.5817]
[1747480869909,5.98885499,166.98,166.9,1.5817]
[1747480870226,19.48,166.99,166.91,18.64964886]
[1747480870432,4.23380069,167.02,166.94,26.0]
[1747480870622,5.98694845,167.03,166.95,7.6968]
[1747480871309,44.88670924,167.04,166.95,13.68633886]
[1747480871510,59.85318433,167.04,166.95,7.6968]
[1747480872341,26.0,167.02,166.95,7.6968]
[1747480872522,26.0,167.02,166.95,1.5817]
[1747480872719,26.0,167.02,166.91,8.1565]
[1747480872928,26.0,167.0,166.91,8.1565]
[1747480873448,20.95933887,166.99,166.91,8.1565]
[1747480875851,136.9,166.98,166.91,8.1565]
[1747480876024,136.9,166.97,166.91,8.1565]
[1747480877133,136.9,166.97,166.91,14.14764954]
[1747480877334,136.9,166.97,166.91,40.14764954]
[1747480877651,136.9,166.97,166.93,5.99053495]
[1747480878151,136.9,167.04,166.95,1.5859]
[1747480878841,142.88668631,167.04,166.95,1.5859]
[1747480879731,142.88668631,167.04,166.96,5.98945855]
[1747480881752,136.9,167.04,166.97,18.64964886]
[1747480882049,7.16826584,167.1,166.99,18.64964886]
[1747480882247,164.45505821,167.11,167.01,18.64964886]
[1747480882445,5.98444045,167.1,167.01,18.64964886]
[1747480882845,164.45505821,167.11,167.04,26.0]
[1747480883146,136.9,167.11,167.05,26.63584886]
[1747480883536,4.23380069,167.13,167.05,26.63584886]
[1747480883849,4.23380069,167.13,167.09,5.98479861]
[1747480884153,4.23380069,167.13,167.08,31.98503694]
[1747480886439,136.9,167.17,167.08,31.98503694]
[1747480886648,136.9,167.17,167.09,18.64964886]
[1747480887743,142.8819722,167.17,167.09,18.64964886]
[1747480888146,142.8819722,167.17,167.09,24.63417348]
[1747480889455,136.9,167.17,167.09,24.63417348]
[1747480889762,136.9,167.17,167.11,18.64964886]
[1747480890256,5.98086124,167.2,167.12,12.28252426]
[1747480890443,5.98086124,167.2,167.13,18.64964886]
[1747480891060,142.8805429,167.21,167.13,18.64964886]
[1747480892358,142.8805429,167.21,167.14,5.98300825]
[1747480894564,19.42,167.23,167.15,18.64964886]
[1747480894755,5.97943075,167.24,167.15,18.64964886]
[1747480896271,5.97943075,167.24,167.16,5.98229241]
[1747480898561,5.97943075,167.24,167.17,1.5345]
[1747480902277,5.97943075,167.24,167.17,7.51636213]
[1747480903480,142.87916823,167.25,167.18,18.64964886]
[1747480903668,142.87916823,167.25,167.17,7.51636213]
[1747480903978,142.87916823,167.25,167.17,1.5345]
[1747480904177,157.82685133,167.25,167.17,1.5345]
[1747480905781,157.82685133,167.25,167.17,7.51640942]
[1747480907215,157.82685133,167.25,167.17,1.5345]
[1747480908787,136.9,167.24,167.17,1.5345]
[1747480909289,142.87950101,167.24,167.19,5.98121897]
[1747480911092,142.87950101,167.24,167.18,5.98145372]
[1747480911295,142.87950101,167.24,167.17,26.16596297]
[1747480916488,142.87950101,167.24,167.17,52.16596297]
[1747480916688,19.42,167.28,167.18,18.64964886]
[1747480916873,19.42,167.28,167.18,25.13504886]
[1747480917798,5.97835834,167.27,167.19,5.98121897]
[1747480918774,20.92425419,167.27,167.18,6.4854]
[1747480919996,20.92425419,167.27,167.17,27.5345]
[1747480920195,136.9,167.26,167.17,27.5345]
[1747480921998,20.92675634,167.25,167.17,1.5345]
[1747480922301,20.92675634,167.25,167.16,19.22]
[1747480923780,136.9,167.24,167.16,19.22]
[1747480923996,5.98014591,167.22,167.16,25.202224]
[1747480924299,136.9,167.21,167.13,1.5954]
[1747480924680,136.9,167.21,167.11,45.22]
[1747480924882,136.9,167.2,167.11,45.22]
[1747480925699,5.98121897,167.19,167.11,26.0]
[1747480926805,5.98121897,167.19,167.11,31.98402425]
[1747480934699,142.88096205,167.2,167.12,18.64964886]